fUSD/lending_fUSD_20240712
["ID","MTS","AMOUNT","RATE_DAILY","PERIOD"]
[331744953,1720744255202,-501.36235839,0.00013925,2]
[331744954,1720744255212,-501.18668127,0.00013925,2]
[331744955,1720744255221,-500.0,0.00013925,2]
[331744956,1720744255233,-500.80397372,0.00013925,2]
[331744957,1720744255242,-20023.65897986,0.00013925,2]
[331744958,1720744255251,-500.0,0.00013925,2]
[331744959,1720744255261,-500.0,0.00013925,2]
[331744960,1720744255271,-501.26954825,0.00013925,2]
[331744961,1720744255281,-500.0,0.00013925,2]
[331744962,1720744255290,-500.42224126,0.00013925,2]
[331744963,1720744255300,-500.0,0.00013925,2]
[331744964,1720744255309,-500.0,0.00013925,2]
[331744965,1720744255318,-500.96501568,0.00013925,2]
[331744966,1720744255327,-500.0,0.00013925,2]
[331744967,1720744255337,-500.0,0.00013925,2]
[331744968,1720744255346,-500.0,0.00013925,2]
[331744969,1720744255356,-500.0,0.00013925,2]
[331744970,1720744255367,-500.0,0.00013925,2]
[331744971,1720744255453,-501.34129962,0.00013925,2]
[331744972,1720744255471,-501.50751276,0.00013925,2]
[331744973,1720744255481,-500.0,0.00013925,2]
[331744974,1720744255491,-502.64013028,0.00013925,2]
[331744975,1720744255501,-500.0,0.00013925,2]
[331744976,1720744255511,-500.54574609,0.00013925,2]
[331744977,1720744255521,-501.34529183,0.00013925,2]
[331744978,1720744255532,-500.0,0.00013925,2]
[331744979,1720744255542,-500.0,0.00013925,2]
[331744980,1720744255551,-500.0,0.00013925,2]
[331744981,1720744255561,-500.97458103,0.00013925,2]
[331744982,1720744255570,-595.12901663,0.00013925,2]
[331744983,1720744255579,-501.05864345,0.00013925,2]
[331744984,1720744255589,-500.0,0.00013925,2]
[331744985,1720744255598,-500.60032518,0.00013925,2]
[331744986,1720744255610,-500.0,0.00013925,2]
[331744987,1720744255620,-500.0,0.00013925,2]
[331744988,1720744255630,-500.0,0.00013925,2]
[331744989,1720744255640,-500.0,0.00013925,2]
[331744990,1720744255649,-639.63,0.00013925,2]
[331744991,1720744255661,-500.0,0.00013925,2]
[331744992,1720744255672,-501.04419323,0.00013925,2]
[331744993,1720744255682,-500.13241941,0.00013925,2]
[331744994,1720744255692,-500.95016373,0.00013925,2]
[331744995,1720744255702,-500.0,0.00013925,2]
[331744996,1720744255711,-501.38413033,0.00013925,2]
[331744997,1720744255720,-501.85228945,0.00013925,2]
[331744998,1720744255731,-564.92679625,0.00013925,2]
[331744999,1720744255740,-500.85346771,0.00013925,2]
[331745000,1720744255749,-500.0,0.00013925,2]
[331745001,1720744255759,-501.23558534,0.00013925,2]
[331745002,1720744255774,-500.0,0.00013925,2]
[331745003,1720744255783,-500.74327214,0.00013925,2]
[331745004,1720744255793,-514.0582577,0.00013925,2]
[331745005,1720744255803,-556.93,0.00013925,2]
[331745006,1720744255815,-501.13263183,0.00013925,2]
[331745007,1720744255824,-500.0,0.00013925,2]
[331745008,1720744255833,-500.0,0.00013925,2]
[331745009,1720744255844,-500.0,0.00013925,2]
[331745010,1720744255854,-500.84861723,0.00013925,2]
[331745011,1720744255866,-597.48,0.00013925,2]
[331745012,1720744255876,-500.77788213,0.00013925,2]
[331745013,1720744255885,-500.0,0.00013925,2]
[331745014,1720744255895,-502.52699187,0.00013925,2]
[331745015,1720744255905,-500.0,0.00013925,2]
[331745016,1720744255915,-500.0,0.00013925,2]
[331745017,1720744255924,-500.0,0.00013925,2]
[331745018,1720744255934,-501.53317474,0.00013925,2]
[331745019,1720744255944,-500.85373619,0.00013925,2]
[331745020,1720744255954,-500.0,0.00013925,2]
[331745021,1720744255964,-500.0,0.00013925,2]
[331745022,1720744255974,-500.0,0.00013925,2]
[331745023,1720744255984,-500.0,0.00013925,2]
[331745024,1720744255993,-500.0,0.00013925,2]
[331745025,1720744256003,-500.0,0.00013925,2]
[331745026,1720744256012,-500.0,0.00013925,2]
[331745027,1720744256022,-500.0,0.00013925,2]
[331745028,1720744256031,-150.0,0.00013925,2]
[331745029,1720744256041,-500.0,0.00013925,2]
[331745030,1720744256051,-500.0,0.00013925,2]
[331745031,1720744256060,-500.0,0.00013925,2]
[331745032,1720744256070,-500.58721218,0.00013925,2]
[331745033,1720744256079,-500.0,0.00013925,2]
[331745034,1720744256089,-500.41305769,0.00013925,2]
[331745035,1720744256098,-500.0,0.00013925,2]
[331745036,1720744256110,-500.0,0.00013925,2]
[331745037,1720744256119,-501.29216886,0.00013925,2]
[331745038,1720744256130,-537.019141,0.00013925,2]
[331745039,1720744256140,-500.55168973,0.00013925,2]
[331745040,1720744256149,-500.0,0.00013925,2]
[331745041,1720744256159,-501.97545138,0.00013925,2]
[331745042,1720744256168,-500.0,0.00013925,2]
[331745043,1720744256179,-500.44614405,0.00013925,2]
[331745044,1720744256189,-547.34895388,0.00013925,2]
[331745045,1720744256199,-500.74163757,0.00013925,2]
[331745046,1720744256210,-500.0,0.00013925,2]
[331745047,1720744256220,-500.0,0.00013925,2]
[331745048,1720744256229,-500.96103578,0.00013925,2]
[331745049,1720744256239,-500.0,0.00013925,2]
[331745050,1720744256249,-500.0,0.00013925,2]
[331745051,1720744256258,-500.0,0.00013925,2]
[331745052,1720744256268,-500.0,0.00013925,2]
[331745053,1720744256277,-500.28662488,0.00013925,2]
[331745054,1720744256286,-500.45770121,0.00013925,2]
[331745055,1720744256296,-500.0,0.00013925,2]
[331745056,1720744256305,-529.96493461,0.00013925,2]
[331745057,1720744256315,-501.07750421,0.00013925,2]
[331745058,1720744256325,-500.0,0.00013925,2]
[331745059,1720744256335,-500.86797086,0.00013925,2]
[331745060,1720744256344,-500.0,0.00013925,2]
[331745061,1720744256354,-500.0,0.00013925,2]
[331745062,1720744256366,-500.0,0.00013925,2]
[331745063,1720744256375,-500.5919214,0.00013925,2]
[331745064,1720744256385,-554.09112667,0.00013925,2]
[331745065,1720744256395,-500.0,0.00013925,2]
[331745066,1720744256404,-500.6216352,0.00013925,2]
[331745067,1720744256414,-500.0,0.00013925,2]
[331745068,1720744256423,-500.60991699,0.00013925,2]
[331745069,1720744256433,-500.78713787,0.00013925,2]
[331745070,1720744256443,-606.13,0.00013925,2]
[331745071,1720744256452,-500.54724581,0.00013925,2]
[331745072,1720744256461,-500.0,0.00013925,2]
[331745073,1720744256470,-500.0,0.00013925,2]
[331745074,1720744256480,-500.0,0.00013925,2]
[331745075,1720744256489,-500.91718346,0.00013925,2]
[331745076,1720744256499,-501.63743521,0.00013925,2]
[331745077,1720744256509,-309.06266546,0.00013925,2]
[331745078,1720744256519,-500.0,0.00013925,2]
[331745079,1720744256528,-500.45730527,0.00013925,2]
[331745080,1720744256537,-500.0,0.00013925,2]
[331745081,1720744256547,-385.96671657,0.00013925,2]
[331745082,1720744256556,-500.63999048,0.00013925,2]
[331745083,1720744256565,-500.0,0.00013925,2]
[331745084,1720744256574,-500.0,0.00013925,2]
[331745085,1720744256583,-500.91451942,0.00013925,2]
[331745086,1720744256592,-500.0,0.00013925,2]
[331745087,1720744256601,-500.0,0.00013925,2]
[331745088,1720744256611,-501.62084652,0.00013925,2]
[331745089,1720744256621,-500.86449964,0.00013925,2]
[331745090,1720744256630,-500.57490725,0.00013925,2]
[331745091,1720744256639,-500.85190877,0.00013925,2]
[331745092,1720744256649,-500.0,0.00013925,2]
[331745093,1720744256658,-500.0,0.00013925,2]
[331745094,1720744256668,-500.0,0.00013925,2]
[331745095,1720744256678,-500.0,0.00013925,2]
[331745096,1720744256688,-500.0,0.00013925,2]
[331745097,1720744256698,-500.0,0.00013925,2]
[331745098,1720744256707,-500.0,0.00013925,2]
[331745099,1720744256717,-500.0,0.00013925,2]
[331745100,1720744256726,-500.78063047,0.00013925,2]
[331745101,1720744256735,-500.62848182,0.00013925,2]
[331745102,1720744256745,-500.38834764,0.00013925,2]
[331745103,1720744256754,-500.11405925,0.00013925,2]
[331745104,1720744256764,-500.0,0.00013925,2]
[331745105,1720744256779,-500.0,0.00013925,2]
[331745106,1720744256788,-501.00033969,0.00013925,2]
[331745107,1720744256798,-586.8139858,0.00013925,2]
[331745108,1720744256808,-500.34252902,0.00013925,2]
[331745109,1720744256818,-500.705894,0.00013925,2]
[331745110,1720744256827,-500.0,0.00013925,2]
[331745111,1720744256837,-500.9034721,0.00013925,2]
[331745112,1720744256849,-500.0,0.00013925,2]
[331745113,1720744256860,-501.35626157,0.00013925,2]
[331745114,1720744256870,-501.01330608,0.00013925,2]
[331745115,1720744256879,-500.0,0.00013925,2]
[331745116,1720744256888,-500.59806741,0.00013925,2]
[331745117,1720744256898,-586.14,0.00013925,2]
[331745118,1720744256907,-501.2352944,0.00013925,2]
[331745119,1720744256917,-500.0,0.00013925,2]
[331745120,1720744256927,-562.40807845,0.00013925,2]
[331745121,1720744256937,-500.0,0.00013925,2]
[331745122,1720744256947,-500.0,0.00013925,2]
[331745123,1720744256957,-500.0,0.00013925,2]
[331745124,1720744256967,-500.0,0.00013925,2]
[331745125,1720744256977,-500.0,0.00013925,2]
[331745126,1720744256987,-500.0,0.00013925,2]
[331745127,1720744256997,-500.0,0.00013925,2]
[331745128,1720744257007,-500.0,0.00013925,2]
[331745129,1720744257017,-500.0,0.00013925,2]
[331745130,1720744257027,-500.0,0.00013925,2]
[331745131,1720744257036,-521.44599792,0.00013925,2]
[331745132,1720744257046,-500.0,0.00013925,2]
[331745133,1720744257055,-500.0,0.00013925,2]
[331745134,1720744257065,-500.0,0.00013925,2]
[331745135,1720744257074,-523.22875761,0.00013925,2]
[331745136,1720744257084,-369.51704601,0.00013925,2]
[331745137,1720744257094,-500.0,0.00013925,2]
[331745138,1720744257103,-500.0,0.00013925,2]
[331745139,1720744257113,-500.0,0.00013925,2]
[331745140,1720744257122,-500.0,0.00013925,2]
[331745141,1720744257132,-1130.35,0.00013925,2]
[331745142,1720744257141,-500.0,0.00013925,2]
[331745143,1720744257151,-166.13153069,0.00013925,2]
[331745144,1720744257160,-500.0,0.00013925,2]
[331745145,1720744257170,-500.0,0.00013925,2]
[331745146,1720744257179,-500.0,0.00013925,2]
[331745147,1720744257188,-500.0,0.00013925,2]
[331745148,1720744257197,-500.0,0.00013925,2]
[331745149,1720744257207,-500.0,0.00013925,2]
[331745150,1720744257216,-500.0,0.00013925,2]
[331745151,1720744257226,-500.0,0.00013925,2]
[331745152,1720744257235,-500.0,0.00013925,2]
[331745153,1720744257244,-500.0,0.00013925,2]
[331745154,1720744257253,-500.0,0.00013925,2]
[331745155,1720744257263,-500.0,0.00013925,2]
[331745156,1720744257274,-500.21397716,0.00013925,2]
[331745157,1720744257283,-500.0,0.00013925,2]
[331745158,1720744257293,-1022.99,0.00013925,2]
[331745159,1720744257303,-500.0,0.00013925,2]
[331745160,1720744257313,-500.0,0.00013925,2]
[331745161,1720744257322,-500.0,0.00013925,2]
[331745162,1720744257331,-500.0,0.00013925,2]
[331745163,1720744257342,-500.0,0.00013925,2]
[331745164,1720744257351,-500.0,0.00013925,2]
[331745165,1720744257363,-568.07536562,0.00013925,2]
[331745166,1720744257373,-500.0,0.00013925,2]
[331745167,1720744257383,-500.0,0.00013925,2]
[331745168,1720744257392,-500.0,0.00013925,2]
[331745169,1720744257402,-500.0,0.00013925,2]
[331745170,1720744257412,-500.0,0.00013925,2]
[331745171,1720744257422,-500.0,0.00013925,2]
[331745172,1720744257433,-500.0,0.00013925,2]
[331745173,1720744257443,-500.0,0.00013925,2]
[331745174,1720744257453,-522.6,0.00013925,2]
[331745175,1720744257462,-500.0,0.00013925,2]
[331745176,1720744257472,-500.0,0.00013925,2]
[331745177,1720744257483,-500.0,0.00013925,2]
[331745178,1720744257493,-500.0,0.00013925,2]
[331745179,1720744257503,-500.10952203,0.00013925,2]
[331745180,1720744257513,-500.0,0.00013925,2]
[331745181,1720744257523,-500.0,0.00013925,2]
[331745182,1720744257533,-500.0,0.00013925,2]
[331745183,1720744257542,-500.0,0.00013925,2]
[331745184,1720744257551,-500.0,0.00013925,2]
[331745185,1720744257560,-500.0,0.00013925,2]
[331745186,1720744257570,-500.0,0.00013925,2]
[331745187,1720744257579,-501.16072178,0.00013925,2]
[331745188,1720744257589,-518.46030569,0.00013925,2]
[331745189,1720744257599,-500.0,0.00013925,2]
[331745190,1720744257609,-500.0,0.00013925,2]
[331745191,1720744257620,-500.0,0.00013925,2]
[331745192,1720744257630,-500.0,0.00013925,2]
[331745193,1720744257639,-500.0,0.00013925,2]
[331745194,1720744257649,-500.0,0.00013925,2]
[331745195,1720744257658,-500.0,0.00013925,2]
[331745196,1720744257667,-156.06482867,0.00013925,2]
[331745197,1720744257677,-500.0,0.00013925,2]
[331745198,1720744257687,-500.0,0.00013925,2]
[331745199,1720744257696,-500.0,0.00013925,2]
[331745200,1720744257706,-500.0,0.00013925,2]
[331745201,1720744257716,-500.0,0.00013925,2]
[331745202,1720744257725,-500.0,0.00013925,2]
[331745203,1720744257735,-625.75657485,0.00013925,2]
[331745204,1720744257744,-500.10465137,0.00013925,2]
[331745205,1720744257753,-211.0,0.00013926,2]
[331745206,1720744257763,-150.0,0.00013926,2]
[331745207,1720744257776,-150.0,0.00013926,2]
[331745208,1720744257786,-300.25233796,0.00013926,2]
[331745209,1720744257795,-615.0,0.0001393,2]
[331745210,1720744257805,-150.0,0.00013931,2]
[331745211,1720744257815,-150.0,0.00013936,2]
[331745212,1720744257825,-500.0,0.00013944,2]
[331745213,1720744257834,-500.0,0.00013944,2]
[331745214,1720744257844,-182.26,0.00013944,2]
[331745215,1720744257855,-210.28550354,0.00013944,2]
[331745216,1720744257867,-500.0,0.00013944,2]
[331745217,1720744257877,-500.0,0.00013944,2]
[331745218,1720744257887,-500.0,0.00013944,2]
[331745219,1720744257896,-532.7397059,0.00013944,2]
[331745220,1720744257905,-500.0,0.00013944,2]
[331745221,1720744258009,-500.0,0.00013944,2]
[331745222,1720744258021,-500.0,0.00013944,2]
[331745223,1720744258030,-500.0,0.00013944,2]
[331745224,1720744258039,-500.0,0.00013944,2]
[331745225,1720744258048,-500.0,0.00013944,2]
[331745226,1720744258058,-928.2,0.00013944,2]
[331745227,1720744258067,-500.0,0.00013944,2]
[331745228,1720744258076,-500.0,0.00013944,2]
[331745229,1720744258085,-500.0,0.00013944,2]
[331745230,1720744258093,-500.0,0.00013944,2]
[331745231,1720744258103,-500.0,0.00013944,2]
[331745232,1720744258113,-581.01381565,0.00013944,2]
[331745233,1720744258123,-500.0,0.00013944,2]
[331745234,1720744258132,-500.0,0.00013944,2]
[331745235,1720744258141,-500.0,0.00013944,2]
[331745236,1720744258150,-333.58018501,0.00013944,2]
[331745237,1720744258159,-500.0,0.00013944,2]
[331745238,1720744258168,-500.0,0.00013944,2]
[331745239,1720744258177,-500.0,0.00013944,2]
[331745240,1720744258186,-500.0,0.00013944,2]
[331745241,1720744258195,-500.0,0.00013944,2]
[331745242,1720744258204,-500.0,0.00013944,2]
[331745243,1720744258213,-500.0,0.00013944,2]
[331745244,1720744258222,-500.0,0.00013954,2]
[331745245,1720744258232,-500.0,0.00013954,2]
[331745246,1720744258241,-500.0,0.00013954,2]
[331745247,1720744258250,-361.99917671,0.00013954,2]
[331745248,1720744258259,-500.0,0.00013954,2]
[331745249,1720744258269,-500.0,0.00013954,2]
[331745250,1720744258279,-433.49089936,0.00013954,2]
[331745251,1720744258288,-500.0,0.00013954,2]
[331745252,1720744258297,-500.0,0.00013954,2]
[331745253,1720744258307,-500.0,0.00013954,2]
[331745254,1720744258317,-500.0,0.00013954,2]
[331745255,1720744258326,-500.0,0.00013954,2]
[331745256,1720744258335,-500.0,0.00013954,2]
[331745257,1720744258344,-500.0,0.00013954,2]
[331745258,1720744258353,-500.0,0.00013954,2]
[331745259,1720744258364,-634.21,0.00013954,2]
[331745260,1720744258373,-500.0,0.00013954,2]
[331745261,1720744258383,-500.0,0.00013954,2]
[331745262,1720744258392,-500.0,0.00013954,2]
[331745263,1720744258401,-500.0,0.00013954,2]
[331745264,1720744258411,-500.0,0.00013954,2]
[331745265,1720744258420,-500.0,0.00013954,2]
[331745266,1720744258429,-531.1330921,0.00013954,2]
[331745267,1720744258439,-500.0,0.00013954,2]
[331745268,1720744258450,-500.0,0.00013954,2]
[331745269,1720744258459,-500.0,0.00013954,2]
[331745270,1720744258468,-500.0,0.00013954,2]
[331745271,1720744258478,-500.0,0.00013954,2]
[331745272,1720744258487,-189.350463,0.00013957,2]
[331745273,1720744258497,-151.0,0.00013957,2]
[331745274,1720744258506,-1500.0,0.00013959,2]
[331745275,1720744258515,-150.0,0.0001396,2]
[331745276,1720744258524,-300.0,0.00013961,2]
[331745277,1720744258533,-150.0,0.00013961,2]
[331745278,1720744258543,-420.0,0.00013965,2]
[331745279,1720744258552,-695.012189,0.00013973,2]
[331745280,1720744258561,-1404.9,0.00013973,3]
[331745281,1720744258570,-150.0,0.00013975,2]
[331745282,1720744258579,-530.16660233,0.00013976,2]
[331745283,1720744258588,-500.0,0.00013976,2]
[331745284,1720744258596,-500.0,0.0001398,2]
[331745285,1720744258605,-500.0,0.0001398,2]
[331745286,1720744258618,-500.0,0.0001398,2]
[331745287,1720744258626,-500.0,0.0001398,2]
[331745288,1720744258636,-184.36,0.0001398,2]
[331745289,1720744258645,-500.0,0.0001398,2]
[331745290,1720744258654,-500.0,0.0001398,2]
[331745291,1720744258664,-500.0,0.0001398,2]
[331745292,1720744258673,-500.0,0.0001398,2]
[331745293,1720744258682,-500.0,0.0001398,2]
[331745294,1720744258691,-287.62887451,0.0001398,2]
[331745295,1720744258700,-500.0,0.0001398,2]
[331745296,1720744258709,-500.0,0.0001398,2]
[331745297,1720744258720,-500.0,0.0001398,2]
[331745298,1720744258730,-500.0,0.0001398,2]
[331745299,1720744258739,-500.0,0.0001398,2]
[331745300,1720744258749,-500.0,0.0001398,2]
[331745301,1720744258759,-500.0,0.0001398,2]
[331745302,1720744258774,-500.0,0.0001398,2]
[331745303,1720744258783,-500.0,0.0001398,2]
[331745304,1720744258792,-500.0,0.0001398,2]
[331745305,1720744258801,-500.0,0.0001398,2]
[331745306,1720744258814,-500.0,0.0001398,2]
[331745307,1720744258823,-500.0,0.0001398,2]
[331745308,1720744258833,-500.0,0.0001398,2]
[331745309,1720744258842,-500.0,0.0001398,2]
[331745310,1720744258852,-500.0,0.0001398,2]
[331745311,1720744258864,-500.0,0.0001398,2]
[331745312,1720744258873,-500.0,0.0001398,2]
[331745313,1720744258882,-500.0,0.0001398,2]
[331745314,1720744258891,-500.0,0.0001398,2]
[331745315,1720744258902,-500.0,0.0001398,2]
[331745316,1720744258911,-150.0,0.0001398,2]
[331745317,1720744258920,-500.0,0.0001398,2]
[331745318,1720744258929,-385.34627979,0.0001398,2]
[331745319,1720744258939,-500.0,0.0001398,2]
[331745320,1720744258948,-500.0,0.0001398,2]
[331745321,1720744258959,-500.0,0.0001398,2]
[331745322,1720744258968,-500.0,0.0001398,2]
[331745323,1720744258978,-500.0,0.0001398,2]
[331745324,1720744258987,-190.76,0.0001398,2]
[331745325,1720744258998,-500.0,0.0001398,2]
[331745326,1720744259008,-500.0,0.0001398,2]
[331745327,1720744259016,-500.0,0.0001398,2]
[331745328,1720744259025,-500.0,0.0001398,2]
[331745329,1720744259035,-500.0,0.0001398,2]
[331745330,1720744259043,-280.34,0.0001398,2]
[331745331,1720744259052,-500.0,0.0001398,2]
[331745332,1720744259062,-500.0,0.0001398,2]
[331745333,1720744259071,-500.0,0.0001398,2]
[331745334,1720744259081,-500.0,0.0001398,2]
[331745335,1720744259090,-500.0,0.0001398,2]
[331745336,1720744259099,-500.0,0.0001398,2]
[331745337,1720744259108,-332.96446081,0.0001398,2]
[331745338,1720744259123,-560.06203532,0.0001398,2]
[331745339,1720744259132,-500.0,0.0001398,2]
[331745340,1720744259141,-500.0,0.0001398,2]
[331745341,1720744259150,-500.0,0.0001398,2]
[331745342,1720744259159,-470.07,0.0001398,2]
[331745343,1720744259167,-500.0,0.0001398,2]
[331745344,1720744259177,-500.0,0.0001398,2]
[331745345,1720744259186,-500.0,0.0001398,2]
[331745346,1720744259195,-500.0,0.0001398,2]
[331745347,1720744259204,-500.0,0.0001398,2]
[331745348,1720744259213,-500.0,0.0001398,2]
[331745349,1720744259223,-500.0,0.0001398,2]
[331745350,1720744259232,-500.0,0.0001398,2]
[331745351,1720744259242,-500.0,0.0001398,2]
[331745352,1720744259253,-563.69,0.0001398,2]
[331745353,1720744259264,-500.0,0.0001398,2]
[331745354,1720744259274,-500.0,0.0001398,2]
[331745355,1720744259284,-500.0,0.0001398,2]
[331745356,1720744259294,-500.0,0.0001398,2]
[331745357,1720744259303,-500.0,0.0001398,2]
[331745358,1720744259314,-500.0,0.0001398,2]
[331745359,1720744259323,-500.0,0.0001398,2]
[331745360,1720744259333,-500.0,0.0001398,2]
[331745361,1720744259344,-1130.35,0.0001398,2]
[331745362,1720744259354,-500.0,0.0001398,2]
[331745363,1720744259366,-500.0,0.0001398,2]
[331745364,1720744259375,-500.0,0.0001398,2]
[331745365,1720744259384,-500.0,0.0001398,2]
[331745366,1720744259393,-500.0,0.0001398,2]
[331745367,1720744259402,-500.0,0.0001398,2]
[331745368,1720744259411,-500.0,0.0001398,2]
[331745369,1720744259420,-550.63,0.0001398,2]
[331745370,1720744259429,-473.02584308,0.0001398,2]
[331745371,1720744259438,-500.0,0.0001398,2]
[331745372,1720744259447,-289.18,0.0001398,2]
[331745373,1720744259457,-500.0,0.0001398,2]
[331745374,1720744259466,-500.0,0.0001398,2]
[331745375,1720744259475,-263.15,0.0001398,2]
[331745376,1720744259484,-500.0,0.0001398,2]
[331745377,1720744259493,-500.0,0.0001398,2]
[331745378,1720744259502,-500.0,0.0001398,2]
[331745379,1720744259511,-500.0,0.0001398,2]
[331745380,1720744259521,-500.0,0.0001398,2]
[331745381,1720744259530,-500.0,0.0001398,2]
[331745382,1720744259539,-500.0,0.0001398,2]
[331745383,1720744259548,-480.42,0.0001398,2]
[331745384,1720744259557,-500.0,0.0001398,2]
[331745385,1720744259566,-500.0,0.0001398,2]
[331745386,1720744259575,-522.6,0.0001398,2]
[331745387,1720744259583,-500.0,0.0001398,2]
[331745388,1720744259593,-413.69,0.0001398,2]
[331745389,1720744259602,-500.0,0.0001398,2]
[331745390,1720744259612,-500.0,0.0001398,2]
[331745391,1720744259621,-500.0,0.0001398,2]
[331745392,1720744259630,-500.0,0.0001398,2]
[331745393,1720744259638,-500.0,0.0001398,2]
[331745394,1720744259647,-500.0,0.0001398,2]
[331745395,1720744259656,-500.0,0.0001398,2]
[331745396,1720744259665,-500.0,0.0001398,2]
[331745397,1720744259674,-500.0,0.0001398,2]
[331745398,1720744259684,-500.0,0.0001398,2]
[331745399,1720744259693,-500.0,0.0001398,2]
[331745400,1720744259702,-500.0,0.0001398,2]
[331745401,1720744259711,-500.0,0.0001398,2]
[331745402,1720744259720,-500.0,0.0001398,2]
[331745403,1720744259730,-500.0,0.0001398,2]
[331745404,1720744259738,-500.0,0.0001398,2]
[331745405,1720744259748,-500.0,0.0001398,2]
[331745406,1720744259757,-500.0,0.0001398,2]
[331745407,1720744259766,-500.0,0.0001398,2]
[331745408,1720744259780,-500.0,0.00013989,2]
[331745409,1720744259789,-500.0,0.00013989,2]
[331745410,1720744259798,-500.0,0.00013989,2]
[331745411,1720744259807,-1000.0,0.0001399,3]
[331745412,1720744259816,-151.0,0.0001399,2]
[331745413,1720744259826,-152.121593,0.0001399,2]
[331745414,1720744259834,-151.0,0.0001399,2]
[331745415,1720744259844,-151.0,0.0001399,2]
[331745416,1720744259855,-151.0,0.0001399,2]
[331745417,1720744259867,-151.0,0.0001399,2]
[331745418,1720744259877,-151.0,0.0001399,2]
[331745419,1720744259886,-151.0,0.0001399,2]
[331745420,1720744259895,-151.0,0.0001399,2]
[331745421,1720744259904,-257.884369,0.0001399,2]
[331745422,1720744259913,-151.0,0.0001399,2]
[331745423,1720744259922,-151.0,0.0001399,2]
[331745424,1720744259932,-187.333986,0.0001399,2]
[331745425,1720744259942,-151.0,0.0001399,2]
[331745426,1720744259951,-151.0,0.0001399,2]
[331745427,1720744259960,-4060.3385943,0.0001399,2]
[331745428,1720744259969,-3138.4301057,0.0001399,2]
[331745429,1720744259978,-2216.5216171,0.0001399,2]
[331745430,1720744259987,-1294.6131285,0.0001399,2]
[331745431,1720744259995,-372.7046399,0.0001399,2]
[331745432,1720744260004,-482.8825006,0.0001399,2]
[331745433,1720744260013,-482.8825006,0.0001399,2]
[331745434,1720744260022,-482.8825006,0.0001399,2]
[331745435,1720744260031,-482.8825006,0.0001399,2]
[331745436,1720744260040,-482.8825006,0.0001399,2]
[331745437,1720744260049,-151.0,0.0001399,2]
[331745438,1720744260059,-151.0,0.0001399,2]
[331745439,1720744260069,-151.0,0.0001399,2]
[331745440,1720744260079,-151.0,0.0001399,2]
[331745441,1720744260088,-151.0,0.0001399,2]
[331745442,1720744260097,-233.810596,0.0001399,2]
[331745443,1720744260107,-847.5264727,0.0001399,2]
[331745444,1720744260121,-847.5264727,0.0001399,2]
[331745445,1720744260130,-847.5264727,0.0001399,2]
[331745446,1720744260139,-847.5264727,0.0001399,2]
[331745447,1720744260149,-847.5264727,0.0001399,2]
[331745448,1720744260159,-4982.2470829,0.00013996,2]
[331745449,1720744260168,-482.8825006,0.00013996,2]
[331745450,1720744260178,-847.5264727,0.00013996,2]
[331745451,1720744260275,-856.076077,0.00013998,2]
[331745452,1720744260285,-214.019019,0.00013998,2]